{"text_format":"3","workbook":"xlsx","n_sheets":2,"sheets":["開始","婚禮預算"],"read":"whole","date_system":"1900"}

{"sheet":"開始","index":0,"n_rows":7,"n_cols":2,"rows_kept":7}
[null,"關於此範本"]
[null,"使用此範本來記錄您在各種項目上的實際婚禮支出，並追蹤其與預算金額的對比。"]
[null,"在各自的表格中，輸入禮服、佈置、禮物、花藝、音樂、攝影、婚宴、信箋、交通和其他雜項的支出費用。"]
[null,"會自動計算 [總預估支出] 和 [總實際支出]。"]
[null,"附註： "]
[null,"[婚禮預算] 工作表的 A 欄提供了其他指示。此文字已刻意隱藏。若要移除文字，請選取欄 A，然後選取 [刪除]。若要取消隱藏文字，請選取 A 欄，然後變更字型色彩。"]
[null,"若要深入了解表格，請在表格內按 SHIFT 然後按 F10，選取 [表格] 選項，然後選取 [替代文字]。"]

{"sheet":"婚禮預算","index":1,"n_rows":93,"n_cols":4,"rows_kept":93,"merged":[[0,1,0,3],[2,1,2,3],[6,1,6,3],[15,1,15,3],[25,1,25,3],[34,1,34,3],[43,1,43,3],[50,1,50,3],[59,1,59,3],[68,1,68,3],[77,1,77,3],[85,1,85,3]]}
[null,"婚禮預算"]
[]
[null,"總支出 "]
[null,"項目 ","預估","實際"]
[null,"總支出 ",{"$f":"SUM(禮服[[#Totals],[預估]],佈置裝飾[[#Totals],[預估]],禮物[[#Totals],[預估]],花飾[[#Totals],[預估]],音樂[[#Totals],[預估]],攝影[[#Totals],[預估]],接待處[[#Totals],[預估]],文具與印刷[[#Totals],[預估]],交通[[#Totals],[預估]],其他費用[[#Totals],[預估]])","v":0},{"$f":"SUM(禮服[[#Totals],[實際]],佈置裝飾[[#Totals],[實際]],禮物[[#Totals],[實際]],花飾[[#Totals],[實際]],音樂[[#Totals],[實際]],攝影[[#Totals],[實際]],接待處[[#Totals],[實際]],文具與印刷[[#Totals],[實際]],交通[[#Totals],[實際]],其他費用[[#Totals],[實際]],)","v":0}]
[]
[null,"禮服"]
[null,"項目 ","預估","實際"]
[null,"訂婚戒指"]
[null,"結婚戒指"]
[null,"新娘禮服"]
[null,"頭紗/頭飾"]
[null,"其他："]
[null,"禮服總費用",{"$f":"SUBTOTAL(109,禮服[預估])","v":0},{"$f":"SUBTOTAL(109,禮服[實際])","v":0}]
[]
[null,"佈置"]
[null,"項目 ","預估","實際"]
[null,"教堂長椅/其他座位的蝴蝶結"]
[null,"桌子擺飾 (不包括花朵)"]
[null,"蠟燭"]
[null,"燈光"]
[null,"氣球"]
[null,"其他："]
[null,"佈置總費用",{"$f":"SUBTOTAL(109,佈置裝飾[預估])","v":0},{"$f":"SUBTOTAL(109,佈置裝飾[實際])","v":0}]
[]
[null,"禮物"]
[null,"項目 ","預估","實際"]
[null,"賓客"]
[null,"新人"]
[null,"家長"]
[null,"司儀/其他參與者"]
[null,"其他："]
[null,"禮物總費用",{"$f":"SUBTOTAL(109,禮物[預估])","v":0},{"$f":"SUBTOTAL(109,禮物[實際])","v":0}]
[]
[null,"花藝"]
[null,"項目 ","預估","實際"]
[null,"捧花"]
[null,"扣眼花飾"]
[null,"胸花"]
[null,"典禮"]
[null,"其他："]
[null,"花藝總費用",{"$f":"SUBTOTAL(109,花飾[預估])","v":0},{"$f":"SUBTOTAL(109,花飾[實際])","v":0}]
[]
[null,"音樂"]
[null,"項目 ","預估","實際"]
[null,"婚禮樂手"]
[null,"婚宴的樂團/DJ"]
[null,"其他："]
[null,"音樂總費用",{"$f":"SUBTOTAL(109,音樂[預估])","v":0},{"$f":"SUBTOTAL(109,音樂[實際])","v":0}]
[]
[null,"攝影"]
[null,"項目 ","預估","實際"]
[null,"正式攝影"]
[null,"側拍"]
[null,"加洗"]
[null,"相簿"]
[null,"其他："]
[null,"攝影總費用",{"$f":"SUBTOTAL(109,攝影[預估])","v":0},{"$f":"SUBTOTAL(109,攝影[實際])","v":0}]
[]
[null,"婚宴 "]
[null,"項目 ","預估","實際"]
[null,"場地費"]
[null,"桌椅"]
[null,"食物"]
[null,"桌巾"]
[null,"其他："]
[null,"婚宴 (不包括音樂和佈置) 總費用",{"$f":"SUBTOTAL(109,接待處[預估])","v":0},{"$f":"SUBTOTAL(109,接待處[實際])","v":0}]
[]
[null,"信箋和印刷"]
[null,"項目 ","預估","實際"]
[null,"邀請函"]
[null,"通知"]
[null,"謝卡"]
[null,"個人信箋"]
[null,"其他："]
[null,"信箋/印刷總費用",{"$f":"SUBTOTAL(109,文具與印刷[預估])","v":0},{"$f":"SUBTOTAL(109,文具與印刷[實際])","v":0}]
[]
[null,"交通"]
[null,"項目 ","預估","實際"]
[null,"禮車/電車"]
[null,"停車費"]
[null,"計程車"]
[null,"其他："]
[null,"交通總費用",{"$f":"SUBTOTAL(109,交通[預估])","v":0},{"$f":"SUBTOTAL(109,交通[實際])","v":0}]
[]
[null,"其他費用"]
[null,"項目 ","預估","實際"]
[null,"主婚人"]
[null,"教堂/婚禮場地費"]
[null,"婚禮總召"]
[null,"預演晚宴"]
[null,"其他："]
[null,"其他總費用",{"$f":"SUBTOTAL(109,其他費用[預估])","v":0},{"$f":"SUBTOTAL(109,其他費用[實際])","v":0}]